fUST/lending_fUST_20250725
["ID","MTS","AMOUNT","RATE_DAILY","PERIOD"]
[374696824,1753417845127,-460.0,0.00017533,2]
[374696825,1753417845137,-263.58,0.00017533,2]
[374696826,1753417845147,-460.0,0.00017533,2]
[374696827,1753417845156,-460.0,0.00017533,2]
[374696828,1753417845166,-460.0,0.00017533,2]
[374696829,1753417845175,-460.0,0.00017533,2]
[374696830,1753417845184,-460.0,0.00017533,2]
[374696831,1753417845194,-460.0,0.00017533,2]
[374696832,1753417845203,-460.0,0.00017533,2]
[374696833,1753417845213,-460.0,0.00017533,2]
[374696834,1753417845223,-623.06,0.00017533,2]
[374696836,1753417845233,-460.0,0.00017533,2]
[374696838,1753417845242,-460.0,0.00017533,2]
[374696840,1753417845251,-555.6,0.00017533,2]
[374696842,1753417845261,-561.1,0.00017533,2]
[374696844,1753417845271,-476.6,0.00017533,2]
[374696846,1753417845283,-460.0,0.00017533,2]
[374696848,1753417845293,-550.65,0.00017533,2]
[374696850,1753417845301,-516.35,0.00017533,2]
[374696851,1753417845310,-460.0,0.00017534,2]
[374696852,1753417845320,-460.0,0.00017534,2]
[374696853,1753417845329,-460.0,0.00017534,2]
[374696854,1753417845339,-460.0,0.00017534,2]
[374696855,1753417845349,-893.71,0.00017534,2]
[374696856,1753417845358,-460.0,0.00017534,2]
[374696857,1753417845367,-460.0,0.00017534,2]
[374696858,1753417845377,-460.0,0.00017534,2]
[374696859,1753417845386,-460.0,0.00017534,2]
[374696860,1753417845396,-460.0,0.00017534,2]
[374696861,1753417845406,-460.0,0.00017534,2]
[374696862,1753417845419,-460.0,0.00017534,2]
[374696863,1753417845428,-460.0,0.00017534,2]
[374696864,1753417845437,-460.0,0.00017534,2]
[374696865,1753417845446,-460.0,0.00017534,2]
[374696866,1753417845457,-460.0,0.00017563,2]
[374696867,1753417845467,-460.0,0.0001763,2]
[374696868,1753417845477,-460.0,0.0001763,2]
[374696869,1753417845487,-460.0,0.0001763,2]
[374696870,1753417845496,-460.0,0.0001763,2]
[374696871,1753417845506,-460.0,0.0001763,2]
[374696872,1753417845516,-495.28,0.0001763,2]
[374696873,1753417845526,-460.0,0.0001763,2]
[374696874,1753417845539,-525.43,0.0001763,2]
[374696875,1753417845548,-460.0,0.0001763,2]
[374696876,1753417845558,-237.9,0.0001763,2]
[374696877,1753417845568,-481.98,0.0001763,2]
[374696878,1753417845577,-582.71,0.0001763,2]
[374696879,1753417845588,-464.5,0.0001763,2]
[374696880,1753417845598,-561.14,0.0001763,2]
[374696881,1753417845607,-485.59,0.0001763,2]
[374696882,1753417845617,-460.0,0.0001763,2]
[374696883,1753417845626,-460.0,0.0001763,2]
[374696884,1753417845636,-460.0,0.0001763,2]
[374696885,1753417845645,-1557.28,0.0001763,2]
[374696887,1753417845654,-1056.98,0.0001763,2]
[374696888,1753417845664,-694.05,0.0001763,2]
[374696889,1753417845674,-460.0,0.0001763,2]
[374696890,1753417845683,-460.0,0.0001763,2]
[374696891,1753417845693,-460.0,0.0001763,2]
[374696892,1753417845702,-569.5,0.0001763,2]
[374696893,1753417845712,-1238.97,0.0001763,2]
[374696894,1753417845722,-460.0,0.0001763,2]
[374696895,1753417845731,-460.0,0.0001763,2]
[374696896,1753417845741,-460.0,0.0001763,2]
[374696897,1753417845751,-460.0,0.0001763,2]
[374696898,1753417845760,-2159.42,0.0001763,2]
[374696899,1753417845770,-460.0,0.0001763,2]
[374696900,1753417845781,-486.48,0.0001763,2]
[374696901,1753417845790,-457.37897851,0.0001763,2]
[374696903,1753417845800,-1612.38301939,0.00017634,2]
[374696904,1753417845810,-657.64,0.00017634,2]
[374696905,1753417845820,-1958.78,0.00017634,2]
[374696906,1753417845830,-1325.76,0.00017634,2]
[374696908,1753417845840,-460.0,0.00017634,2]
[374696910,1753417845849,-460.0,0.00017635,2]
[374696911,1753417845859,-487.29,0.00017635,2]
[374696912,1753417845868,-460.0,0.00017635,2]
[374696913,1753417845878,-460.0,0.00017635,2]
[374696914,1753417845887,-601.66,0.00017635,2]
[374696915,1753417845897,-460.0,0.00017635,2]
[374696916,1753417845907,-460.0,0.00017635,2]
[374696917,1753417845916,-330.92230677,0.00017635,2]
[374696918,1753417845926,-460.0,0.00017635,2]
[374696919,1753417845935,-460.0,0.00017635,2]
[374696920,1753417845945,-460.0,0.00017635,2]
[374696921,1753417845954,-460.0,0.00017635,2]
[374696922,1753417845963,-460.0,0.00017635,2]
[374696923,1753417845972,-460.0,0.00017635,2]
[374696924,1753417845982,-460.0,0.00017635,2]
[374696925,1753417845991,-460.0,0.00017635,2]
[374696926,1753417846000,-460.0,0.00017635,2]
[374696927,1753417846010,-297.00262278,0.00017635,2]
[374696928,1753417846020,-416.72459286,0.00017635,2]
[374696929,1753417846033,-460.0,0.00017635,2]
[374696931,1753417846042,-460.0,0.00017635,2]
[374696933,1753417846052,-460.0,0.00017635,2]
[374696935,1753417846061,-460.0,0.00017635,2]
[374696937,1753417846071,-460.0,0.00017635,2]
[374696939,1753417846080,-460.0,0.00017635,2]
[374696941,1753417846090,-460.0,0.00017635,2]
[374696943,1753417846099,-1004.72513593,0.00017642,2]
[374696944,1753417846108,-500.0,0.00017721,2]
[374696945,1753417846117,-6423.7214443,0.00017728,2]
[374696946,1753417846126,-460.0,0.00017732,2]
[374696947,1753417846136,-460.0,0.00017734,2]
[374696948,1753417846146,-460.0,0.00017734,2]
[374696949,1753417846155,-460.0,0.00017734,2]
[374696951,1753417846165,-460.0,0.00017734,2]
[374696952,1753417846174,-460.0,0.00017734,2]
[374696955,1753417846184,-800.0,0.00017776,2]
[374696958,1753417846193,-460.0,0.000178,2]
[374696960,1753417846202,-460.0,0.00017803,2]
[374696963,1753417846212,-460.0,0.00017803,2]
[374696966,1753417846221,-1518.26,0.00017803,2]
[374696969,1753417846231,-460.0,0.00017804,2]
[374696972,1753417846241,-460.0,0.00017804,2]
[374696974,1753417846251,-460.0,0.00017804,2]
[374696978,1753417846260,-460.0,0.00017804,2]
[374696981,1753417846270,-2865.13,0.00017804,2]
[374696983,1753417846282,-1473.68,0.00017804,2]
[374696985,1753417846291,-460.0,0.00017804,2]
[374696987,1753417846301,-223.23911968,0.00017804,2]
[374696989,1753417846311,-460.0,0.00017804,2]
[374696991,1753417846321,-460.0,0.00017804,2]
[374696993,1753417846330,-460.0,0.00017804,2]
[374696995,1753417846339,-1303.91,0.00017804,2]
[374696997,1753417846349,-1396.28,0.00017804,2]
[374696999,1753417846358,-1165.0,0.00017804,2]
[374697001,1753417846367,-460.0,0.00017804,2]
[374697003,1753417846377,-460.0,0.00017804,2]
[374697005,1753417846386,-548.61,0.00017804,2]
[374697007,1753417846395,-151.0,0.00017805,2]
[374697009,1753417846405,-821.0,0.00017805,2]
[374697011,1753417846418,-151.0,0.00017805,2]
[374697013,1753417846428,-293.48917632,0.00017805,2]
[374697015,1753417846437,-151.0,0.00017805,2]
[374697017,1753417846447,-151.0,0.00017805,2]
[374697019,1753417846458,-151.0,0.00017805,2]
[374697021,1753417846468,-359.0,0.00017805,2]
[374697023,1753417846478,-718.0,0.00017805,2]
[374697025,1753417846487,-500.0,0.00017805,2]
[374697027,1753417846498,-151.0,0.00017805,2]
[374697029,1753417846507,-460.0,0.00017807,2]
[374697031,1753417846517,-460.0,0.00017807,2]
[374697033,1753417846527,-460.0,0.00017807,2]
[374697035,1753417846538,-460.0,0.00017807,2]
[374697037,1753417846548,-460.0,0.00017807,2]
[374697039,1753417846557,-460.0,0.00017807,2]
[374697040,1753417846567,-623.06,0.00017807,2]
[374697041,1753417846576,-460.0,0.00017807,2]
[374697042,1753417846586,-555.6,0.00017807,2]
[374697043,1753417846595,-561.1,0.00017807,2]
[374697044,1753417846605,-460.0,0.00017807,2]
[374697045,1753417846615,-460.0,0.00017808,2]
[374697046,1753417846625,-893.71,0.00017808,2]
[374697047,1753417846635,-460.0,0.00017808,2]
[374697048,1753417846644,-460.0,0.00017808,2]
[374697049,1753417846654,-460.0,0.00017808,2]
[374697050,1753417846663,-460.0,0.00017808,2]
[374697051,1753417846673,-460.0,0.00017808,2]
[374697052,1753417846682,-460.0,0.00017904,2]
[374697053,1753417846692,-460.0,0.00017904,2]
[374697054,1753417846702,-226.1,0.00017904,2]
[374697055,1753417846712,-460.0,0.00017904,2]
[374697056,1753417846725,-495.28,0.00017904,2]
[374697057,1753417846734,-525.43,0.00017904,2]
[374697059,1753417846744,-485.59,0.00017904,2]
[374697061,1753417846753,-460.0,0.00017904,2]
[374697063,1753417846762,-164.54,0.00017904,2]
[374697066,1753417846771,-460.0,0.00017904,2]
[374697068,1753417846782,-1557.28,0.00017904,2]
[374697070,1753417846792,-1056.98,0.00017904,2]
[374697071,1753417846801,-694.05,0.00017904,2]
[374697072,1753417846811,-460.0,0.00017904,2]
[374697073,1753417846820,-460.0,0.00017904,2]
[374697074,1753417846830,-497.93,0.00017904,2]
[374697075,1753417846839,-569.5,0.00017904,2]
[374697076,1753417846849,-1238.97,0.00017904,2]
[374697077,1753417846858,-460.0,0.00017904,2]
[374697078,1753417846868,-2159.42,0.00017904,2]
[374697079,1753417846877,-460.0,0.00017904,2]
[374697080,1753417846886,-486.48,0.00017904,2]
[374697081,1753417846895,-657.64,0.00017908,2]
[374697082,1753417846905,-1958.78,0.00017908,2]
[374697083,1753417846914,-1325.76,0.00017908,2]
[374697084,1753417846923,-334.24101923,0.00017909,2]
[374697085,1753417846933,-505.29,0.00017909,2]
[374697086,1753417846943,-460.0,0.00017909,2]
[374697087,1753417846952,-601.66,0.00017909,2]
[374697088,1753417846962,-460.0,0.00017909,2]
[374697089,1753417846971,-207.86,0.00017909,2]
[374697090,1753417846981,-460.0,0.00017909,2]
[374697091,1753417846990,-460.0,0.00017909,2]
[374697092,1753417847000,-518.06,0.00017909,2]
[374697093,1753417847010,-460.0,0.00017909,2]
[374697094,1753417847019,-460.0,0.00017909,2]
[374697095,1753417847031,-460.0,0.00017909,2]
[374697096,1753417847042,-460.0,0.00017909,2]
[374697097,1753417847051,-460.0,0.00017909,2]
[374697098,1753417847060,-460.0,0.00017909,2]
[374697099,1753417847069,-460.0,0.00017909,2]
[374697100,1753417847079,-408.83684479,0.00017909,2]
[374697101,1753417847088,-500.0,0.00017956,2]
[374697102,1753417847097,-6423.7214443,0.00018003,2]
[374697103,1753417847107,-460.0,0.00018006,2]
[374697104,1753417847116,-460.0,0.00018008,2]
[374697105,1753417847126,-1000.0,0.00018021,2]
[374697106,1753417847135,-1000.0,0.00018021,2]
[374697107,1753417847145,-184.88570209,0.00018021,2]
[374697108,1753417847154,-1000.0,0.00018021,2]
[374697110,1753417847164,-589.04137098,0.00018021,2]
[374697112,1753417847174,-155.0,0.00018021,2]
[374697122,1753417847296,-460.0,0.00018074,2]
[374697124,1753417847306,-460.0,0.00018077,2]
[374697126,1753417847316,-460.0,0.00018077,2]
[374697128,1753417847325,-1518.26,0.00018077,2]
[374697129,1753417847335,-460.0,0.00018078,2]
[374697130,1753417847345,-460.0,0.00018078,2]
[374697131,1753417847354,-460.0,0.00018078,2]
[374697133,1753417847363,-460.0,0.00018078,2]
[374697134,1753417847374,-2865.13,0.00018078,2]
[374697135,1753417847384,-1473.68,0.00018078,2]
[374697136,1753417847394,-460.0,0.00018078,2]
[374697137,1753417847403,-460.0,0.00018078,2]
[374697138,1753417847415,-460.0,0.00018078,2]
[374697139,1753417847432,-1303.91,0.00018078,2]
[374697140,1753417847441,-1396.28,0.00018078,2]
[374697141,1753417847451,-1165.0,0.00018078,2]
[374697142,1753417847460,-460.0,0.00018078,2]
[374697143,1753417847470,-460.0,0.00018078,2]
[374697144,1753417847480,-548.61,0.00018078,2]
[374697145,1753417847489,-151.0,0.00018079,2]
[374697146,1753417847500,-821.0,0.00018079,2]
[374697147,1753417847510,-151.0,0.00018079,2]
[374697148,1753417847520,-216.89327024,0.00018079,2]
[374697149,1753417847530,-718.0,0.00018079,2]
[374697150,1753417847540,-460.0,0.00018081,2]
[374697151,1753417847550,-569.2,0.00018081,2]
[374697152,1753417847559,-460.0,0.00018081,2]
[374697153,1753417847569,-460.0,0.00018081,2]
[374697154,1753417847578,-326.22,0.00018081,2]
[374697155,1753417847588,-460.0,0.00018081,2]
[374697156,1753417847597,-623.06,0.00018081,2]
[374697157,1753417847606,-460.0,0.00018081,2]
[374697158,1753417847615,-555.6,0.00018081,2]
[374697159,1753417847625,-160.86229111,0.00018081,2]
[374697160,1753417847736,-400.23770889,0.00018081,2]
[374697161,1753417847746,-460.0,0.00018081,2]
[374697162,1753417847755,-460.0,0.00018082,2]
[374697163,1753417847765,-893.71,0.00018082,2]
[374697164,1753417847774,-460.0,0.00018082,2]
[374697165,1753417847786,-460.0,0.00018082,2]
[374697166,1753417847796,-460.0,0.00018082,2]
[374697167,1753417847806,-460.0,0.00018082,2]
[374697168,1753417847815,-460.0,0.00018082,2]
[374697169,1753417847825,-460.0,0.00018178,2]
[374697170,1753417847834,-460.0,0.00018178,2]
[374697171,1753417847844,-460.0,0.00018178,2]
[374697172,1753417847853,-495.28,0.00018178,2]
[374697173,1753417847863,-525.43,0.00018178,2]
[374697174,1753417847873,-485.59,0.00018178,2]
[374697175,1753417847883,-460.0,0.00018178,2]
[374697176,1753417847892,-1557.28,0.00018178,2]
[374697177,1753417847903,-1056.98,0.00018178,2]
[374697178,1753417847913,-694.05,0.00018178,2]
[374697179,1753417847923,-235.68,0.00018178,2]
[374697180,1753417847933,-460.0,0.00018178,2]
[374697181,1753417847943,-569.5,0.00018178,2]
[374697182,1753417847952,-1238.97,0.00018178,2]
[374697183,1753417847962,-460.0,0.00018178,2]
[374697184,1753417847972,-2159.42,0.00018178,2]
[374697185,1753417847982,-486.48,0.00018178,2]
[374697186,1753417847991,-657.64,0.00018182,2]
[374697187,1753417848001,-1958.78,0.00018182,2]
[374697188,1753417848010,-1325.76,0.00018182,2]
[374697189,1753417848020,-460.0,0.00018183,2]
[374697190,1753417848032,-601.66,0.00018183,2]
[374697191,1753417848041,-460.0,0.00018183,2]
[374697192,1753417848051,-460.0,0.00018183,2]
[374697193,1753417848061,-460.0,0.00018183,2]
[374697194,1753417848070,-460.0,0.00018183,2]
[374697195,1753417848080,-170.21,0.00018183,2]
[374697196,1753417848090,-460.0,0.00018183,2]
[374697197,1753417848100,-326.16,0.00018183,2]
[374697198,1753417848111,-276.95141514,0.00018184,2]
[374697199,1753417848121,-6423.7214443,0.00018279,2]
[374697200,1753417848130,-273.42,0.0001828,2]
[374697201,1753417848139,-460.0,0.00018282,2]
[374697202,1753417848148,-460.0,0.00018348,2]
[374697203,1753417848158,-460.0,0.00018351,2]
[374697204,1753417848168,-460.0,0.00018351,2]
[374697205,1753417848177,-1518.26,0.00018351,2]
[374697206,1753417848187,-437.46997992,0.00018352,2]
[374697207,1753417848197,-460.0,0.00018352,2]
[374697208,1753417848206,-460.0,0.00018352,2]
[374697209,1753417848215,-2865.13,0.00018352,2]
[374697210,1753417848225,-1473.68,0.00018352,2]
[374697211,1753417848234,-460.0,0.00018352,2]
[374697212,1753417848244,-460.0,0.00018352,2]
[374697213,1753417848254,-1303.91,0.00018352,2]
[374697214,1753417848264,-1396.28,0.00018352,2]
[374697215,1753417848273,-1165.0,0.00018352,2]
[374697216,1753417848284,-460.0,0.00018352,2]
[374697217,1753417848294,-460.0,0.00018352,2]
[374697218,1753417848303,-548.61,0.00018352,2]
[374697219,1753417848313,-198.0,0.00018353,2]
[374697220,1753417848322,-821.0,0.00018353,2]
[374697221,1753417848333,-198.0,0.00018353,2]
[374697222,1753417848342,-718.0,0.00018353,2]
[374697223,1753417848353,-460.0,0.00018355,2]
[374697224,1753417848362,-460.0,0.00018355,2]
[374697225,1753417848372,-460.0,0.00018355,2]
[374697226,1753417848382,-460.0,0.00018355,2]
[374697227,1753417848392,-623.06,0.00018355,2]
[374697228,1753417848402,-460.0,0.00018355,2]
[374697229,1753417848414,-555.6,0.00018355,2]
[374697230,1753417848432,-561.1,0.00018355,2]
[374697231,1753417848447,-460.0,0.00018355,2]
[374697232,1753417848462,-460.0,0.00018356,2]
[374697233,1753417848481,-893.71,0.00018356,2]
[374697234,1753417848493,-460.0,0.00018356,2]
[374697235,1753417848507,-576.58,0.00018356,2]
[374697236,1753417848520,-261.36,0.00018356,2]
[374697237,1753417848537,-596.34,0.00018356,2]
[374697238,1753417848549,-460.0,0.00018356,2]
[374697239,1753417848562,-1004.72513593,0.00018362,2]
[374697240,1753417848576,-2016.56412824,0.00018375,2]
[374697241,1753417848589,-460.0,0.00018452,2]
[374697242,1753417848603,-460.0,0.00018452,2]
[374697243,1753417848617,-460.0,0.00018452,2]
[374697244,1753417848629,-495.28,0.00018452,2]
[374697245,1753417848641,-525.43,0.00018452,2]
[374697246,1753417848654,-485.59,0.00018452,2]
[374697247,1753417848666,-460.0,0.00018452,2]
[374697248,1753417848679,-1557.28,0.00018452,2]
[374697249,1753417848693,-1056.98,0.00018452,2]
[374697250,1753417848704,-694.05,0.00018452,2]
[374697251,1753417848716,-460.0,0.00018452,2]
[374697253,1753417848727,-569.5,0.00018452,2]
[374697255,1753417848738,-1238.97,0.00018452,2]
[374697258,1753417848749,-460.0,0.00018452,2]
[374697260,1753417848762,-2159.42,0.00018452,2]
[374697262,1753417848775,-486.48,0.00018452,2]
[374697264,1753417848790,-657.64,0.00018456,2]
[374697267,1753417848811,-1958.78,0.00018456,2]
[374697270,1753417848835,-1325.76,0.00018456,2]
[374697272,1753417848852,-460.0,0.00018457,2]
[374697274,1753417848870,-601.66,0.00018457,2]
[374697276,1753417848886,-332.49,0.00018457,2]
[374697277,1753417848898,-467.6,0.00018457,2]
[374697278,1753417848909,-460.0,0.00018457,2]
[374697279,1753417848921,-460.0,0.00018457,2]
[374697281,1753417848935,-420.0,0.00018458,2]
[374697283,1753417848949,-420.0,0.00018458,2]
[374697285,1753417848965,-420.0,0.00018458,2]
[374697287,1753417848977,-420.0,0.00018458,2]
[374697288,1753417848988,-420.0,0.00018458,2]
[374697289,1753417849002,-151.0,0.000185,2]
[374697290,1753417849015,-1680.0,0.00018546,2]
[374697291,1753417849032,-1680.0,0.00018549,2]
[374697292,1753417849043,-6423.7214443,0.00018555,2]
[374697293,1753417849054,-460.0,0.00018556,2]
[374697294,1753417849066,-903.15822047,0.00018568,2]
[374697295,1753417849084,-460.0,0.00018622,2]
[374697296,1753417849096,-460.0,0.00018625,2]
[374697297,1753417849109,-460.0,0.00018625,2]
[374697298,1753417849122,-1518.26,0.00018625,2]
[374697299,1753417849139,-460.0,0.00018626,2]
[374697300,1753417849152,-2865.13,0.00018626,2]
[374697301,1753417849165,-1473.68,0.00018626,2]
[374697302,1753417849178,-460.0,0.00018626,2]
[374697303,1753417849191,-460.0,0.00018626,2]
[374697304,1753417849203,-1303.91,0.00018626,2]
[374697305,1753417849216,-1396.28,0.00018626,2]
[374697306,1753417849228,-1165.0,0.00018626,2]
[374697307,1753417849240,-460.0,0.00018626,2]
[374697308,1753417849252,-460.0,0.00018626,2]
[374697309,1753417849264,-548.61,0.00018626,2]
[374697310,1753417849276,-821.0,0.00018627,2]
[374697313,1753417849289,-718.0,0.00018627,2]
[374697315,1753417849300,-460.0,0.00018629,2]
[374697317,1753417849313,-460.0,0.00018629,2]
[374697319,1753417849325,-460.0,0.00018629,2]
[374697321,1753417849337,-460.0,0.00018629,2]
[374697324,1753417849349,-623.06,0.00018629,2]
[374697325,1753417849361,-258.21,0.00018629,2]
[374697326,1753417849372,-555.6,0.00018629,2]
[374697328,1753417849389,-561.1,0.00018629,2]
[374697329,1753417849403,-460.0,0.00018629,2]
[374697330,1753417849419,-460.0,0.0001863,2]
[374697331,1753417849433,-893.71,0.0001863,2]
[374697332,1753417849445,-460.0,0.0001863,2]
[374697333,1753417849459,-460.0,0.0001863,2]
[374697334,1753417849471,-160.0,0.000187,2]
[374697335,1753417849484,-460.0,0.00018726,2]
[374697336,1753417849497,-460.0,0.00018726,2]
[374697337,1753417849510,-460.0,0.00018726,2]
[374697338,1753417849522,-495.28,0.00018726,2]
[374697339,1753417849536,-525.43,0.00018726,2]
[374697340,1753417849547,-485.59,0.00018726,2]
[374697341,1753417849559,-460.0,0.00018726,2]
[374697342,1753417849571,-1557.28,0.00018726,2]
[374697343,1753417849583,-1056.98,0.00018726,2]
[374697344,1753417849595,-694.05,0.00018726,2]
[374697345,1753417849607,-460.0,0.00018726,2]
[374697346,1753417849620,-1238.97,0.00018726,2]
[374697347,1753417849630,-569.5,0.00018726,2]
[374697348,1753417849640,-460.0,0.00018726,2]
[374697349,1753417849650,-2159.42,0.00018726,2]
[374697350,1753417849659,-486.48,0.00018726,2]
[374697351,1753417849669,-657.64,0.0001873,2]
[374697352,1753417849679,-1958.78,0.0001873,2]
[374697353,1753417849690,-1325.76,0.0001873,2]
[374697354,1753417849700,-460.0,0.00018731,2]
[374697355,1753417849710,-601.66,0.00018731,2]
[374697356,1753417849720,-460.0,0.00018731,2]
[374697357,1753417849730,-460.0,0.00018731,2]
[374697358,1753417849740,-500.53543036,0.00018761,2]
[374697359,1753417849750,-501.60230331,0.00018761,2]
[374697360,1753417849760,-500.0,0.00018761,2]
[374697361,1753417849770,-500.0,0.00018761,2]
[374697362,1753417849782,-500.0,0.00018761,2]
[374697363,1753417849791,-158.73385463,0.00018761,2]
[374697364,1753417849802,-374.84362265,0.00018761,2]
[374697365,1753417849811,-371.92015396,0.00018761,2]
[374697366,1753417849820,-500.0,0.00018761,2]
[374697367,1753417849829,-501.68596709,0.00018761,2]
[374697368,1753417849841,-500.0,0.00018761,2]
[374697369,1753417849851,-500.0,0.00018761,2]
[374697370,1753417849860,-500.0,0.00018761,2]
[374697371,1753417849870,-500.0,0.00018761,2]
[374697372,1753417849880,-500.0,0.00018761,2]
[374697373,1753417849890,-500.0,0.00018761,2]
[374697374,1753417849900,-500.43209641,0.00018761,2]
[374697375,1753417849910,-500.86453383,0.00018761,2]
[374697376,1753417849920,-509.79784909,0.00018761,2]
[374697377,1753417849929,-500.0,0.00018761,2]
[374697378,1753417849939,-500.0,0.00018761,2]
[374697379,1753417849948,-500.82028526,0.00018761,2]
[374697380,1753417849958,-501.5053055,0.00018761,2]
[374697381,1753417849968,-500.0,0.00018761,2]
[374697382,1753417850168,-500.76491467,0.00018761,2]
[374697383,1753417850218,-460.0,0.0001883,2]
[374697384,1753417850234,-6423.7214443,0.00018831,2]
[374697385,1753417850243,-800.0,0.00018872,2]
[374697386,1753417850253,-460.0,0.00018899,2]
[374697387,1753417850263,-460.0,0.00018899,2]
[374697388,1753417850272,-1518.26,0.00018899,2]
[374697389,1753417850286,-151.0,0.000189,2]
[374697390,1753417850295,-460.0,0.000189,2]
[374697391,1753417850305,-4537.90837407,0.000189,2]
[374697392,1753417850315,-2865.13,0.000189,2]
[374697393,1753417850324,-1473.68,0.000189,2]
[374697394,1753417850334,-460.0,0.000189,2]
[374697395,1753417850343,-460.0,0.000189,2]
[374697396,1753417850353,-1303.91,0.000189,2]
[374697397,1753417850363,-1396.28,0.000189,2]
[374697398,1753417850372,-1165.0,0.000189,2]
[374697399,1753417850382,-460.0,0.000189,2]
[374697400,1753417850392,-460.0,0.000189,2]
[374697401,1753417850401,-548.61,0.000189,2]
[374697402,1753417850411,-821.0,0.00018901,2]
[374697403,1753417850422,-718.0,0.00018901,2]
[374697404,1753417850432,-500.0,0.00018901,2]
[374697405,1753417850442,-276.12169304,0.00018903,2]
[374697406,1753417850451,-460.0,0.00018903,2]
[374697407,1753417850461,-460.0,0.00018903,2]
[374697408,1753417850471,-460.0,0.00018903,2]
[374697409,1753417850481,-623.06,0.00018903,2]
[374697410,1753417850490,-555.6,0.00018903,2]
[374697411,1753417850502,-561.1,0.00018903,2]
[374697412,1753417850512,-460.0,0.00018903,2]
[374697413,1753417850521,-460.0,0.00018904,2]
[374697414,1753417850533,-893.71,0.00018904,2]
[374697415,1753417850542,-460.0,0.00018904,2]
[374697416,1753417850551,-582.89,0.00018904,2]
[374697417,1753417850562,-460.0,0.00019,2]
[374697418,1753417850571,-460.0,0.00019,2]
[374697419,1753417850581,-550.44,0.00019,2]
[374697420,1753417850591,-495.28,0.00019,2]
[374697421,1753417850600,-525.43,0.00019,2]
[374697422,1753417850609,-485.59,0.00019,2]
[374697423,1753417850619,-460.0,0.00019,2]
[374697424,1753417850628,-1557.28,0.00019,2]
[374697425,1753417850637,-1056.98,0.00019,2]
[374697426,1753417850646,-694.05,0.00019,2]
[374697427,1753417850656,-460.0,0.00019,2]
[374697428,1753417850666,-1238.97,0.00019,2]
[374697429,1753417850675,-569.5,0.00019,2]
[374697430,1753417850684,-460.0,0.00019,2]
[374697431,1753417850693,-223.80317226,0.00019,20]
[374697432,1753417850703,-18000.0,0.00019,2]
[374697433,1753417850712,-2159.42,0.00019,2]
[374697434,1753417850722,-486.48,0.00019,2]
[374697435,1753417850731,-460.0,0.00019004,2]
[374697436,1753417850741,-460.0,0.00019004,2]
[374697437,1753417850751,-462.91590237,0.00019004,2]
[374697438,1753417850760,-460.0,0.00019004,2]
[374697439,1753417850769,-460.0,0.00019004,2]
[374697440,1753417850779,-460.0,0.00019004,2]